bitfinex/quotes_ETHUSD_20260313
["timestamp","ask_amount","ask_price","bid_price","bid_amount"]
[1773426167907,3.24164605,2097.9,2097.1,4.76826244]
[1773426167908,1.99101679,2097.9,2097.1,4.76826244]
[1773426168108,1.99101679,2097.9,2097.2,1.333]
[1773426168323,1.99101679,2097.9,2096.9,4.77000734]
[1773426168324,1.99101679,2097.9,2096.9,1.19328172]
[1773426168504,1.99101679,2097.8,2097.0,1.333]
[1773426168699,1.99101679,2097.8,2096.9,0.0011]
[1773426169951,1.99101679,2097.6,2096.9,0.0011]
[1773426170235,1.99101679,2097.5,2096.6,1.3341]
[1773426170804,1.99101679,2097.5,2096.6,2.52650486]
[1773426171011,1.99101679,2097.5,2096.6,1.3341]
[1773426171209,1.99101679,2097.5,2096.6,0.0011]
[1773426171941,2.03996521,2097.2,2096.6,0.0011]
[1773426172449,2.03996521,2096.8,2096.3,0.0011]
[1773426172735,2.03996521,2096.8,2095.7,1.19290593]
[1773426173107,2.03996521,2096.8,2095.6,0.0011]
[1773426173312,2.03996521,2096.5,2095.6,0.0011]
[1773426173923,2.03996521,2096.0,2095.4,0.38816925]
[1773426174243,2.03996521,2096.0,2095.4,0.0011]
[1773426175930,1.192805,2095.9,2095.4,0.0011]
[1773426176152,3.23277021,2095.9,2095.1,1.13436046]
[1773426176543,2.03996521,2095.9,2095.1,1.13436046]
[1773426177444,2.03996521,2095.9,2095.1,2.46336046]
[1773426178548,3.23278283,2095.9,2095.1,2.46336046]
[1773426178748,2.03996521,2095.8,2095.1,2.46336046]
[1773426180119,2.03996521,2095.8,2095.1,1.13436046]
[1773426180322,2.03996521,2095.8,2095.2,1.33]
[1773426180552,3.23283091,2095.8,2095.3,1.19314656]
[1773426180724,2.03996521,2095.7,2095.3,1.19314656]
[1773426181125,2.03996521,2095.7,2094.8,2.52343135]
[1773426182423,2.03996521,2095.7,2094.9,1.33]
[1773426182645,2.03996521,2095.5,2094.8,1.19343135]
[1773426182853,2.03996521,2095.5,2094.7,1.19454504]
[1773426185052,2.03996521,2095.3,2094.7,0.0011]
[1773426185933,2.03996521,2095.3,2095.0,0.0011]
[1773426186243,2.03996521,2095.3,2094.5,0.0011]
[1773426186451,2.03996521,2094.7,2094.2,0.0011]
[1773426186942,1.1935453,2094.6,2094.2,0.0011]
[1773426187124,2.03996521,2094.5,2094.2,0.0011]
[1773426188774,1.86518641,2094.4,2093.5,0.32811637]
[1773426188922,2.03996521,2094.3,2093.4,4.77689768]
[1773426189117,4.77418122,2094.7,2091.6,0.02713871]
[1773426189118,2.03996521,2094.7,2091.6,0.02713871]
[1773426189354,0.74701167,2091.5,2090.4,0.03376737]
[1773426189553,3.90515162,2091.8,2090.5,2.01999285]
[1773426189554,2.03996521,2091.8,2090.5,2.01999285]
[1773426189741,1.15410734,2092.1,2090.9,1.97215741]
[1773426189923,8.482517,2091.7,2091.1,1.97215741]
[1773426190122,1.666,2092.5,2091.2,0.04781943]
[1773426190123,14.851748,2091.8,2091.2,0.04781943]
[1773426190324,1.28722326,2091.7,2091.2,0.04781943]
[1773426190529,1.28722326,2091.7,2091.1,1.97215741]
[1773426190731,1.28722326,2091.7,2090.4,2.00592478]
[1773426191025,14.851748,2091.2,2090.4,2.00592478]
[1773426191222,14.851748,2091.2,2090.4,2.87693798]
[1773426191450,14.851748,2091.2,2090.6,1.97215741]
[1773426191451,12.63599551,2091.2,2090.6,1.97215741]
[1773426191623,1.28722326,2091.7,2091.1,0.8710132]
[1773426191950,1.28722326,2091.7,2091.2,0.04781943]
[1773426192145,1.28722326,2091.7,2091.1,0.8710132]
[1773426192446,1.28722326,2091.7,2090.9,1.97215741]
[1773426192652,2.48245493,2091.7,2090.9,1.97215741]
[1773426192949,6.59545,2091.2,2090.6,1.318]
[1773426193323,1.28722326,2091.7,2090.9,1.97215741]
[1773426193652,1.28722326,2091.7,2091.2,0.8710132]
[1773426193821,1.28722326,2091.7,2091.0,2.01998141]
[1773426194019,1.28722326,2091.7,2091.2,0.8710132]
[1773426194222,1.19495019,2092.2,2091.3,0.04781714]
[1773426194439,1.19483451,2092.4,2091.3,1.97215741]
[1773426194617,4.77903999,2092.5,2090.9,1.86518641]
[1773426194618,1.19475547,2092.5,2091.4,1.97215741]
[1773426194822,2.03996521,2092.6,2091.4,1.321]
[1773426195048,1.19462894,2092.7,2091.6,2.84317061]
[1773426195250,1.19462894,2092.7,2091.7,1.97215741]
[1773426195552,2.03996521,2092.6,2091.4,1.321]
[1773426195852,1.19462894,2092.7,2090.9,3.28815741]
[1773426195853,2.03996521,2092.4,2090.9,3.28815741]
[1773426196235,1.19462894,2092.7,2090.9,3.28815741]
[1773426196236,2.03996521,2092.1,2090.9,1.97215741]
[1773426196655,2.03996521,2092.1,2090.9,2.84317061]
[1773426197029,2.03996521,2092.1,2090.9,1.97215741]
[1773426197250,1.19502868,2092.0,2090.9,1.97215741]
[1773426197552,1.19502868,2092.0,2090.9,2.84317061]
[1773426197754,1.19502868,2092.0,2091.1,0.0011]
[1773426198756,2.03996521,2091.8,2091.1,0.0011]
[1773426199053,1.19502868,2092.0,2091.1,0.0011]
[1773426199226,1.19502868,2092.0,2091.1,0.8721132]
[1773426199427,4.78011472,2092.1,2091.1,0.0011]
[1773426199633,6.82007993,2092.1,2091.1,0.0011]
[1773426199845,6.82007993,2092.1,2091.1,0.8721132]
[1773426200156,6.82007993,2092.1,2091.1,0.0011]
[1773426200529,6.82007993,2092.1,2091.1,0.8721132]
[1773426200852,6.82007993,2092.1,2091.1,0.0011]
[1773426201036,6.82007993,2092.1,2091.1,0.8721132]
[1773426201358,4.84542223,2092.3,2091.1,2.9154917]
[1773426201359,4.77988623,2092.3,2091.1,2.9154917]
[1773426202252,7.68984343,2092.4,2091.2,2.9143917]
[1773426202571,4.7788957,2092.6,2091.4,2.9143917]
[1773426202733,4.7788957,2092.6,2091.6,2.9143917]
[1773426203360,4.10481453,2092.3,2091.3,1.315]
[1773426204069,4.10481453,2092.3,2091.4,0.8710132]
[1773426204433,2.9099572,2092.2,2091.1,0.0011]
[1773426205067,2.9099572,2092.2,2091.1,0.8721132]
[1773426205246,2.9099572,2092.2,2091.2,0.04781943]
[1773426205447,4.10492875,2092.1,2091.2,0.04781943]
[1773426205647,2.9099572,2091.8,2091.1,0.0011]
[1773426206666,1.19497155,2092.1,2091.1,0.0011]
[1773426206830,1.19497155,2092.1,2091.3,0.8710132]
[1773426207161,1.19497155,2092.1,2091.1,2.9154917]
[1773426207545,1.19497155,2092.1,2091.4,0.8710132]
[1773426207744,1.19497155,2092.1,2091.2,2.96221113]
[1773426207952,1.19497155,2092.1,2091.4,0.8710132]
[1773426208156,1.19497155,2092.1,2091.2,4.2323917]
[1773426208382,4.10492875,2092.1,2091.1,0.0011]
[1773426208680,4.10492875,2092.1,2091.1,0.8721132]
[1773426209055,1.19497155,2092.1,2091.3,2.9143917]
[1773426209265,1.19497155,2092.1,2091.4,0.04781486]
[1773426209464,4.77988623,2092.3,2091.4,0.04781486]
[1773426209666,4.77988623,2092.3,2091.4,2.9143917]
[1773426210166,0.001,2091.9,2091.6,0.8710132]
[1773426210560,0.001,2091.9,2091.4,4.2333917]
[1773426210761,0.001,2091.9,2091.3,0.0011]
[1773426211064,0.001,2091.9,2091.3,0.04891714]
[1773426211584,0.001,2091.9,2091.3,2.96330884]
[1773426212174,0.001,2091.9,2091.6,0.8710132]
[1773426212543,0.001,2091.9,2091.3,2.9154917]
[1773426212747,0.001,2091.9,2091.6,0.8710132]
[1773426213169,0.001,2091.9,2091.7,0.8710132]
[1773426213449,0.001,2091.9,2091.3,2.9154917]
[1773426213660,0.001,2091.9,2091.6,0.8710132]
[1773426214069,0.001,2091.9,2091.3,2.9154917]
[1773426214875,0.001,2091.9,2091.6,0.8710132]
[1773426215381,0.001,2091.9,2091.3,2.9154917]
[1773426215766,0.001,2091.9,2091.7,0.8710132]
[1773426215962,0.001,2091.9,2091.3,2.9154917]
[1773426216165,0.001,2091.9,2091.6,0.8710132]
[1773426216365,2.9099572,2091.8,2091.3,0.0011]
[1773426216669,2.9099572,2091.7,2091.1,0.0011]
[1773426216874,2.9099572,2091.7,2091.2,0.79498964]
[1773426217198,0.001,2091.9,2091.1,2.9154917]
[1773426217984,1.1960858,2091.9,2091.3,0.79498964]
[1773426218179,1.1960858,2091.9,2091.2,0.04781943]
[1773426218398,1.1960858,2091.9,2091.1,2.9154917]
[1773426218748,0.31364207,2092.8,2091.1,2.9154917]
[1773426218857,1.50822953,2092.8,2092.0,3.70938134]
[1773426219166,1.19458746,2092.8,2092.1,4.00669797]
[1773426219364,4.77753567,2093.2,2092.3,2.9143917]
[1773426219957,4.77753567,2093.2,2092.5,0.79498964]
[1773426220157,4.77753567,2093.2,2092.2,1.308]
[1773426220353,4.77753567,2093.2,2092.4,0.79498964]
[1773426220797,4.77753567,2093.2,2092.2,1.308]
[1773426221094,4.77753567,2093.2,2092.2,5.41729358]
[1773426221278,4.77753567,2093.2,2092.2,4.2223917]
[1773426221470,4.77753567,2093.2,2092.5,0.79498964]
[1773426221672,4.77753567,2093.2,2092.2,5.41728303]
[1773426221868,4.77753567,2093.2,2092.3,2.9143917]
[1773426222261,1.19434358,2093.3,2092.3,2.9143917]
[1773426222262,4.77674305,2093.5,2092.3,2.9143917]
[1773426222477,4.77674305,2093.5,2092.5,3.70938134]
[1773426222661,4.77674305,2093.5,2092.6,2.9143917]
[1773426222863,4.77674305,2093.5,2092.8,0.79498964]
[1773426223406,4.77674305,2093.5,2092.9,0.79498964]
[1773426223702,4.77674305,2093.5,2092.6,2.9143917]
[1773426223904,4.77674305,2093.5,2092.9,0.79498964]
[1773426224063,4.77674305,2093.5,2092.6,4.10903746]
[1773426224462,4.77674305,2093.5,2093.0,0.79498964]
[1773426224883,4.77674305,2093.5,2093.3,0.79498964]
[1773426225057,4.77674305,2093.5,2092.7,2.9143917]
[1773426225588,4.2147,2094.1,2093.1,2.73525824]
[1773426226085,4.2147,2094.1,2093.4,0.79498964]
[1773426226491,4.2147,2094.1,2093.6,0.79498964]
[1773426226797,4.2147,2094.1,2093.2,2.73525824]
[1773426227110,4.77500027,2094.3,2093.4,2.73525824]
[1773426227386,4.21452898,2094.4,2093.2,3.717851]
[1773426227387,3.02081271,2094.4,2093.2,3.717851]
[1773426227581,3.02081271,2094.4,2093.4,2.10898964]
[1773426227781,1.19360229,2094.5,2093.5,2.73525824]
[1773426227958,1.19360229,2094.5,2093.8,0.79498964]
[1773426228164,1.19360229,2094.5,2093.6,2.73525824]
[1773426228566,1.19360229,2094.5,2094.2,0.79498964]
[1773426228765,1.19360229,2094.5,2093.9,2.73525824]
[1773426228967,4.77378827,2094.8,2094.4,0.79498964]
[1773426229299,4.77378827,2094.8,2093.9,2.73525824]
[1773426229787,4.77378827,2094.8,2094.4,0.79498964]
[1773426229975,4.77378827,2094.8,2094.5,0.79498964]
[1773426230163,4.77354035,2095.1,2094.1,2.73525824]
[1773426231086,3.00997687,2095.0,2094.1,2.73525824]
[1773426231588,3.00997687,2095.0,2094.1,2.68525824]
[1773426232104,1.19337438,2094.9,2094.1,2.68525824]
[1773426232488,1.19337438,2094.9,2093.8,4.77591343]
[1773426232489,4.20335125,2094.9,2093.8,2.84464991]
[1773426232666,3.00997687,2094.5,2093.2,2.84464991]
[1773426232860,3.00997687,2094.5,2093.4,2.84464991]
[1773426233565,2.90437438,2094.9,2093.5,0.04776689]
[1773426233566,4.88509585,2094.3,2093.5,0.04776689]
[1773426233802,3.00997687,2094.3,2093.2,2.89242365]
[1773426234001,3.00997687,2094.8,2093.2,2.89242365]
[1773426234381,1.1935453,2094.6,2093.4,2.84464991]
[1773426234585,4.20352217,2094.6,2093.5,0.04776689]
[1773426234781,3.00997687,2094.5,2093.5,0.04776689]
[1773426236414,3.00997687,2094.5,2093.5,2.8924168]
[1773426236612,1.19365928,2094.4,2093.5,2.8924168]
[1773426236911,1.19365928,2094.4,2093.5,2.84464991]
[1773426237212,4.20363615,2094.4,2093.5,2.84464991]
[1773426237531,3.00997687,2094.3,2093.4,0.0011]
[1773426237725,4.88509585,2093.5,2093.1,0.0011]
[1773426238019,3.00997687,2093.4,2092.4,2.84464991]
[1773426238594,1.19428653,2093.3,2092.4,2.84464991]
[1773426239597,1.19428653,2093.3,2092.5,0.04778972]
[1773426240522,1.19428653,2093.3,2092.5,2.89243963]
[1773426240825,4.77580788,2093.9,2092.9,2.84464991]
[1773426242024,7.78578475,2093.9,2093.0,0.0477783]
[1773426243038,7.78578475,2093.9,2093.0,4.08688194]
[1773426243338,7.78578475,2093.9,2092.7,4.03923535]
[1773426243339,3.00997687,2093.8,2092.7,4.03923535]
[1773426243845,4.77580788,2093.9,2093.0,2.84464991]
[1773426244043,4.77580788,2093.9,2093.1,2.89242593]
[1773426244447,7.78506316,2094.4,2093.1,2.84464991]
[1773426244737,7.78506316,2094.4,2093.2,4.03899349]
[1773426244942,7.78506316,2094.4,2093.3,4.16264991]
[1773426245139,7.78506316,2094.4,2093.4,2.84464991]
[1773426245341,7.78506316,2094.4,2092.7,1.318]
[1773426245342,3.00997687,2094.0,2092.7,1.318]
[1773426245640,0.04776689,2093.9,2092.8,2.84464991]
[1773426246143,3.05774376,2094.3,2093.0,2.84464991]
[1773426247333,1.19377327,2094.2,2093.1,4.03905055]
[1773426247526,0.04776689,2094.1,2093.1,4.03905055]
[1773426247938,0.04776689,2094.1,2093.2,2.84464991]
[1773426249526,1.19388729,2094.0,2093.3,1.19428653]
[1773426250343,0.04776689,2093.9,2093.2,4.03894979]
[1773426250727,1.19388729,2094.0,2093.2,4.03894979]
[1773426251630,1.19383894,2094.1,2093.3,2.84464991]
[1773426251831,0.001,2094.2,2093.5,2.84464991]
[1773426252047,1.1936842,2094.4,2093.7,2.84464991]
[1773426253851,0.04776689,2094.5,2093.8,4.03865124]
[1773426254042,0.04776689,2094.7,2093.8,4.03865124]
[1773426254850,0.04776689,2094.7,2093.8,2.84464991]
[1773426255375,1.19441075,2094.9,2094.2,2.84464991]
[1773426255592,1.19441075,2094.9,2094.3,4.16264991]
[1773426255855,0.04876689,2094.9,2094.3,1.318]
[1773426256027,3.05874376,2094.9,2094.0,2.84464991]
[1773426256228,3.05874376,2094.9,2094.1,1.318]
[1773426256641,3.01097687,2094.9,2094.1,1.318]
[1773426256857,0.04876689,2094.9,2094.2,2.84464991]
[1773426257843,1.19441686,2094.9,2094.3,4.03836618]
[1773426258041,1.19441686,2094.9,2094.4,2.84464991]
[1773426258667,0.001,2094.9,2094.4,2.84464991]
[1773426259058,1.19437685,2094.9,2094.1,8.03015192]
[1773426259258,0.04776689,2094.8,2094.2,1.318]
[1773426259854,1.19437685,2094.9,2094.2,1.318]
[1773426260065,0.001,2094.9,2094.3,4.03836618]
[1773426260260,0.001,2094.9,2094.3,2.84464991]
[1773426261657,0.001,2094.9,2094.2,1.318]
[1773426261857,2.98321805,2094.9,2094.2,1.318]
[1773426262068,1.19343135,2094.8,2094.2,1.318]
[1773426262247,0.04776689,2094.7,2094.2,1.318]
[1773426264074,1.1935453,2094.6,2094.2,1.318]
[1773426264748,1.1935453,2094.6,2094.3,0.04774865]
[1773426265253,0.04776689,2094.7,2094.3,0.04774865]
[1773426265451,1.19442001,2094.9,2094.3,0.04774865]
[1773426265870,1.19442001,2094.9,2094.2,5.31113847]
[1773426266070,1.19442001,2094.9,2094.3,0.04774865]
[1773426266266,1.19442001,2094.9,2094.2,2.51172847]
[1773426267878,1.19442001,2094.9,2094.3,0.04774865]
[1773426268280,0.001,2094.9,2094.4,2.79936806]
[1773426268576,0.001,2094.9,2094.5,2.84711215]
[1773426268883,0.001,2094.9,2094.5,2.79936806]
[1773426269661,1.19325032,2095.2,2094.4,2.79936806]
[1773426270452,1.19325032,2095.2,2094.4,3.99302268]
[1773426271073,4.12770148,2095.2,2094.4,3.99302268]
[1773426272202,4.12770148,2095.2,2094.5,0.04774409]
[1773426272494,1.19325032,2095.2,2094.5,3.99294859]
[1773426273184,1.19417795,2095.3,2094.6,2.79936806]
[1773426273386,0.001,2095.0,2094.7,0.04773953]
[1773426273692,0.001,2095.0,2094.7,1.36473953]
[1773426274077,0.001,2095.0,2094.7,4.16410759]
[1773426274370,1.19415735,2095.3,2094.8,2.79936806]
[1773426274580,1.19303268,2095.5,2094.8,3.9927971]
[1773426274770,1.19286191,2095.8,2094.9,2.79936806]
[1773426275296,4.12730226,2095.9,2094.9,2.79936806]
[1773426275497,2.93445116,2095.8,2094.8,1.19342904]
[1773426275867,2.93445116,2095.8,2094.8,3.9927971]
[1773426276969,1.19291883,2095.7,2094.8,1.19342904]
[1773426277169,1.19291883,2095.7,2094.9,2.84710303]
[1773426277668,2.93445116,2095.6,2094.9,0.04773497]
[1773426277873,2.93445116,2095.6,2094.9,1.317]
[1773426278384,2.93445116,2095.6,2095.0,0.04773269]
[1773426278698,2.93445116,2095.6,2094.9,1.317]
[1773426278897,2.93445116,2095.4,2094.9,1.317]
[1773426279198,2.93445116,2095.4,2094.4,2.51062229]
[1773426279397,2.93445116,2095.4,2094.4,5.30999035]
[1773426279976,2.93445116,2095.4,2094.5,2.84711215]
[1773426281190,1.19314656,2095.3,2094.5,3.9929322]
[1773426281996,2.93445116,2095.2,2094.3,1.19480588]
[1773426282183,2.93445116,2095.2,2094.4,2.84711443]
[1773426282500,1.19314656,2095.3,2094.4,2.84711443]
[1773426283297,7.70703742,2095.4,2094.5,1.19360229]
[1773426283477,7.70703742,2095.4,2094.6,0.04774181]
[1773426283678,2.93445116,2095.3,2094.6,1.36474181]
[1773426284791,4.77258626,2095.4,2094.6,4.16410987]
[1773426284963,4.77228274,2095.5,2094.7,2.68132191]
[1773426285170,2.74030808,2095.8,2094.8,2.72905916]
[1773426285369,7.51179053,2095.8,2094.9,3.87469629]
[1773426286588,7.51179053,2095.8,2095.0,2.68132191]
[1773426286787,3.93299926,2096.1,2095.1,2.72905232]
[1773426287012,3.93299926,2096.1,2095.3,2.68132191]
[1773426287212,1.19269118,2096.1,2095.3,2.68132191]
[1773426287416,1.19263429,2096.2,2095.5,2.68132191]
[1773426287719,5.08535238,2096.3,2095.7,2.68132191]
[1773426287720,0.31485937,2096.3,2095.7,2.68132191]
[1773426288019,4.76974505,2096.6,2095.8,1.317]
[1773426288989,2.74030808,2096.5,2095.8,1.317]
[1773426289395,1.19252051,2096.4,2095.8,2.50981761]
[1773426289601,1.19252051,2096.4,2095.8,5.19113952]
[1773426289801,1.19252051,2096.4,2095.9,2.68132191]
[1773426291115,3.85480272,2096.7,2095.9,2.68132191]
[1773426291694,2.66245284,2096.6,2095.8,1.317]
[1773426291892,2.66245284,2096.6,2095.8,2.50985951]
[1773426292705,2.66245284,2096.6,2095.8,1.317]
[1773426293723,1.19246362,2096.5,2095.8,1.317]
[1773426294324,2.66245284,2096.4,2095.3,4.00843622]
[1773426294619,2.66245284,2096.4,2095.4,2.81529849]
[1773426294812,2.66245284,2096.4,2095.4,2.86302207]
[1773426295206,2.66245284,2096.4,2095.4,2.81529849]
[1773426296014,2.66245284,2096.2,2095.4,4.00838432]
[1773426296307,2.66245284,2096.2,2095.5,0.0477213]
[1773426296514,2.66245284,2096.2,2095.4,2.81529849]
[1773426298228,1.19269118,2096.1,2095.4,2.81529849]
[1773426298522,1.19269118,2096.1,2095.4,4.00838623]
[1773426298898,1.19269118,2096.1,2095.5,0.0477213]
[1773426299433,2.66245284,2096.6,2095.6,2.81529849]
[1773426299614,2.66245284,2096.6,2095.8,2.81529849]
[1773426300500,1.19246362,2096.5,2095.8,2.81529849]
[1773426300903,1.19246362,2096.5,2095.9,0.0477122]
[1773426301109,1.19246362,2096.5,2095.9,2.86301069]
[1773426301757,2.66245284,2096.4,2095.8,1.317]
[1773426302556,1.19257739,2096.3,2095.8,1.317]
[1773426303046,2.66245284,2096.2,2095.8,1.317]
[1773426303751,2.66245284,2096.7,2095.9,2.86301069]
[1773426304129,1.19223615,2096.9,2095.9,2.86301069]
[1773426304554,1.19223615,2096.9,2096.0,1.19274809]
[1773426304725,1.19223615,2096.9,2096.1,2.86300613]
[1773426305045,3.85451845,2097.2,2096.3,2.81529849]
[1773426305435,2.66245284,2097.1,2096.0,2.81529849]
[1773426306553,3.85463214,2097.0,2096.1,4.00796869]
[1773426306754,2.66245284,2096.9,2096.2,0.04770537]
[1773426306939,2.66245284,2096.9,2096.1,2.81529849]
[1773426307761,2.66245284,2096.9,2095.9,1.19276211]
[1773426307928,2.66245284,2096.9,2095.9,2.81529849]
[1773426308129,2.66245284,2096.9,2095.9,4.00808741]
[1773426308754,3.85474585,2096.8,2096.0,2.81529849]
[1773426309943,3.85474585,2096.8,2095.8,1.317]
[1773426309944,2.66245284,2096.7,2095.8,1.317]
[1773426310443,2.66245284,2096.7,2095.8,2.50985749]
[1773426310752,2.66245284,2096.7,2095.9,0.0477122]
[1773426310954,1.19240675,2096.6,2095.9,0.0477122]
[1773426311450,1.19240675,2096.6,2095.9,2.86301069]
[1773426311651,3.85485959,2096.6,2095.9,2.86301069]
[1773426312225,3.85485959,2096.6,2096.1,0.0011]
[1773426312456,3.85585959,2096.6,2096.1,0.0011]
[1773426313349,1.19340675,2096.6,2096.1,0.0011]
[1773426313953,0.001,2096.6,2096.1,2.81639849]
[1773426314257,1.1921793,2097.0,2096.2,2.86300386]
[1773426314623,3.85446161,2097.3,2096.3,0.04770309]
[1773426314826,3.85446161,2097.3,2096.6,2.81529849]
[1773426315174,3.85446161,2097.3,2096.6,4.00765913]
[1773426315324,2.66245284,2097.2,2096.4,2.5094835]
[1773426315762,1.19200877,2097.3,2096.5,2.81529849]
[1773426316354,1.19298947,2097.4,2096.5,2.86299703]
[1773426316776,0.001,2097.4,2096.7,2.81529849]
[1773426317086,0.001,2097.4,2096.9,2.81529849]
[1773426317683,0.001,2097.4,2097.1,2.81529849]
[1773426317859,0.001,2097.4,2097.0,1.316]
[1773426321002,0.001,2097.4,2097.0,4.03647223]
[1773426321162,4.76676548,2097.9,2097.1,2.72047223]
[1773426321775,1.1926229,2098.0,2097.3,2.72047223]
[1773426322369,0.001,2098.0,2097.3,2.72047223]
[1773426322999,1.1926161,2098.0,2097.3,2.72047223]
[1773426323189,0.001,2098.0,2097.5,2.72047223]
[1773426323367,0.001,2098.0,2097.6,1.317]
[1773426324190,2.65019587,2098.0,2097.6,1.317]
[1773426324598,0.001,2098.0,2097.6,1.317]
[1773426324991,2.65019587,2098.0,2097.1,5.22958772]
[1773426325220,2.65019587,2098.0,2097.2,2.72047223]
[1773426325221,1.19166785,2097.9,2097.2,2.72047223]
[1773426325715,3.84086372,2097.9,2097.2,2.72047223]
[1773426326090,1.19261947,2098.0,2097.3,2.72047223]
[1773426327021,3.84181534,2098.0,2097.1,2.50911658]
[1773426327319,2.64919587,2097.9,2097.1,2.50911735]
[1773426327522,0.001,2097.8,2097.2,0.04768262]
[1773426328214,2.65019587,2097.8,2097.1,4.03747223]
[1773426328421,2.65019587,2097.8,2097.2,0.04768262]
[1773426329204,2.64919587,2097.6,2096.8,2.72047223]
[1773426331293,1.19189511,2097.5,2096.8,3.9127468]
[1773426331530,1.19189511,2097.5,2096.9,2.76816167]
[1773426332955,1.19189511,2097.5,2096.9,2.72047223]
[1773426333156,1.19189511,2097.5,2097.0,0.04768717]
[1773426333844,0.001,2097.8,2097.0,0.04768717]
[1773426333845,0.001,2097.8,2097.1,2.72047223]
[1773426334051,1.19274638,2097.8,2097.3,2.72047223]
[1773426334355,0.001,2097.8,2097.4,0.04767807]
[1773426334556,1.19273202,2097.8,2097.4,0.04767807]
[1773426334961,1.24041464,2097.8,2097.3,1.319]
[1773426335567,3.88961051,2097.8,2097.3,1.319]
[1773426335857,3.88961051,2097.8,2097.3,2.51099087]
[1773426336064,1.19273202,2097.8,2097.4,0.04767807]
[1773426337163,1.24041464,2097.8,2097.3,1.319]
[1773426337471,0.001,2097.8,2097.4,3.96010224]
[1773426337658,0.001,2098.0,2097.5,2.72047223]
[1773426337965,0.001,2098.0,2097.6,1.23947851]
[1773426338267,0.001,2098.0,2097.6,3.95995074]
[1773426339374,1.19148953,2098.3,2097.7,2.72047223]
[1773426339678,1.19148953,2098.3,2097.8,1.32]
[1773426340250,3.8406854,2098.3,2097.8,1.32]
[1773426341047,2.69687849,2098.2,2097.8,1.32]
[1773426341868,1.19155426,2098.1,2097.8,1.32]
[1773426342172,1.19155426,2098.1,2097.6,2.72047223]
[1773426342370,4.76573242,2098.4,2097.7,2.72047223]
[1773426342580,4.81341504,2098.4,2097.7,2.72047223]
[1773426342882,2.64919587,2098.3,2097.4,2.72047223]
[1773426343058,2.64919587,2098.1,2097.4,3.9124115]
[1773426343378,2.69687849,2098.1,2097.5,1.321]
[1773426343579,2.69687849,2098.1,2097.2,1.321]
[1773426343960,2.64919587,2097.9,2097.2,1.321]
[1773426344163,0.04768262,2097.8,2097.2,2.5130623]
[1773426344357,0.04768262,2097.8,2097.3,0.04768035]
[1773426344973,2.78124331,2097.8,2097.2,1.321]
[1773426346053,1.19178147,2097.7,2097.2,1.321]
[1773426346258,2.73356069,2097.6,2097.2,1.321]
[1773426346998,1.19178147,2097.7,2097.3,0.04768035]
[1773426347570,3.92534216,2097.7,2097.2,1.321]
[1773426347798,2.73356069,2097.6,2097.2,1.321]
[1773426348203,2.73356069,2097.6,2097.1,0.0011]
[1773426348204,3.9254558,2097.5,2097.1,0.0011]
[1773426350081,2.73356069,2097.4,2097.1,0.0011]
[1773426350272,1.19200877,2097.3,2097.1,0.0011]
[1773426354518,3.92651855,2097.4,2097.1,0.0011]
[1773426354898,2.73456069,2097.4,2097.1,0.0011]
[1773426355102,3.92651538,2097.4,2097.1,0.0011]
[1773426355604,0.001,2097.4,2097.1,0.0011]
[1773426356522,0.001,2097.4,2097.2,1.19206561]
[1773426356820,0.001,2097.4,2097.2,1.23974823]
[1773426357019,3.94156233,2097.9,2097.2,3.80253256]
[1773426357324,0.04768262,2097.8,2097.2,2.56278433]
[1773426358124,2.79754159,2097.8,2097.1,0.0011]
[1773426358293,2.79754159,2097.8,2097.1,1.19321455]
[1773426358494,1.19178147,2097.7,2097.1,1.19321455]
[1773426359400,1.19161105,2098.0,2097.2,2.56278433]
[1773426359598,0.04768262,2097.9,2097.2,2.56278433]
[1773426360323,1.23929367,2098.0,2097.4,2.56278433]
[1773426360689,1.23929367,2098.0,2097.5,3.75467944]
[1773426360690,1.19161251,2098.0,2097.5,3.75467944]
[1773426361124,1.23929513,2098.0,2097.5,2.56278433]
[1773426361516,1.23929513,2098.0,2097.4,1.322]
[1773426361737,2.74985897,2097.9,2097.4,1.322]
[1773426362346,1.23929513,2098.0,2097.4,2.5139498]
[1773426362522,1.23929513,2098.0,2097.4,5.07673413]
[1773426363240,1.23929513,2098.0,2097.4,5.1244122]
[1773426363941,3.9891541,2098.0,2097.4,1.322]
[1773426364143,2.74985897,2097.9,2097.4,1.322]
[1773426364311,0.04768262,2097.8,2097.4,1.322]
[1773426365012,1.19178147,2097.7,2097.4,1.322]
[1773426366720,1.23943676,2097.8,2097.4,1.322]
[1773426366927,0.04768262,2097.8,2097.5,0.0476758]
[1773426367110,1.19164935,2098.0,2097.5,0.0476758]
[1773426367941,2.74985897,2097.9,2097.4,1.3231]
[1773426368443,2.74985897,2097.9,2097.4,0.0011]
[1773426369151,3.94158363,2097.8,2097.4,0.0011]
[1773426370256,2.74985897,2097.7,2097.1,1.3241]
[1773426370652,2.74985897,2097.7,2097.2,0.04768262]
[1773426371037,1.19183829,2097.6,2097.2,0.04768262]
[1773426371231,3.94169726,2097.6,2097.1,1.3241]
[1773426371561,1.19181037,2097.7,2097.2,2.61046695]
[1773426372059,2.74985897,2097.6,2097.1,0.0011]
[1773426372232,2.74985897,2097.6,2097.0,0.0011]
[1773426373244,2.74985897,2097.4,2097.0,0.0011]
[1773426375567,4.76803509,2097.4,2097.0,0.0011]
[1773426375737,2.74985897,2097.5,2097.0,0.0011]
[1773426376984,7.5171759,2097.7,2097.0,2.56388433]
[1773426377279,1.19178147,2097.7,2097.1,2.61046922]
[1773426377779,4.76711827,2097.8,2097.1,3.8025776]
[1773426377983,2.74985897,2097.7,2097.1,2.56278433]
[1773426378173,2.74985897,2097.7,2097.0,1.19327163]
[1773426378376,2.74985897,2097.7,2097.0,1.19327352]
[1773426379084,2.74985897,2097.7,2097.0,3.75605785]
[1773426379780,1.19183829,2097.6,2097.0,3.75605785]
[1773426380381,1.19183829,2097.6,2097.2,0.0011]
[1773426382479,1.19183829,2097.6,2097.2,2.60808528]
[1773426383562,0.001,2097.8,2097.2,2.60808528]
[1773426383563,1.19275912,2097.8,2097.2,2.60808528]
[1773426383957,1.19275912,2097.8,2097.2,1.19313299]
[1773426384173,1.19275912,2097.8,2097.2,3.80011827]
[1773426384805,1.19275912,2097.8,2097.2,5.12311827]
[1773426385203,0.001,2097.8,2097.3,2.60698528]
[1773426386711,0.001,2097.8,2097.5,2.60698528]
[1773426389296,0.001,2097.8,2097.3,2.60698528]
[1773426389902,0.001,2097.8,2097.3,3.79899399]
[1773426390108,2.51842067,2097.7,2097.3,0.04768035]
[1773426390620,0.001,2097.8,2097.3,2.60698528]
[1773426390792,2.51942067,2097.8,2097.2,1.3241]